[Event "World Junior U20 Open 2018"]
[Site "Gebze"]
[Date "2018.09.14"]
[Round "10.67"]
[White "Tuna, Alp"]
[Black "Ismayilov, Muhammad"]
[Result "1/2-1/2"]
[ECO "D05"]
[WhiteElo "2253"]
[BlackElo "2137"]
[Annotator "ChessBase"]
[PlyCount "137"]
[EventDate "2018.09.05"]
[EventType "swiss"]
[EventCountry "TUR"]
[SourceTitle "playchess.com"]
[Source "ChessBase"]
[SourceQuality "1"]
[TimeControl "40/5400+30:1800+30"]

1. Nf3 d5 2. d4 e6 3. e3 Nf6 4. Bd3 c5 5. c3 Nc6 6. O-O Be7 7. Nbd2 O-O 8. dxc5 Bxc5 9. e4 {[%emt 0:15:30]} e5 {[%emt 0:26:30]} 10. b4 {[%emt 0:02:30]} Bd6 {[%emt 0:12:30]} 11. b5 {[%emt 0:17:30]} Ne7 {[%emt 0:03:30]} 12. c4 {[%emt 0:06:30]} d4 {[%emt 0:07:30]} 13. c5 {[%emt 0:01:30]} Bxc5 {[%emt 0:02:30]} 14. Nxe5 {[%emt 0:00:30]} Ng6 {[%emt 0:04:30]} 15. Nxg6 {[%emt 0:04:30]} hxg6 {[%emt 0:00:00]} 16. Nb3 {[%emt 0:08:30]} Bb6 {[%emt 0:02:00]} 17. Re1 {[%emt 0:03:30]} Be6 {[%emt 0:09:30]} 18. Ba3 {[%emt 0:02:30]} Re8 {[%emt 0:00:00]} 19. f3 {[%emt 0:07:30]} Rc8 {[%emt 0:02:00]} 20. Rc1 {[%emt 0:05:30]} Qd7 {[%emt 0:04:30]} 21. Bb4 {[%emt 0:02:30]} Rxc1 {[%emt 0:00:30]} 22. Qxc1 {[%emt 0:00:30]} Rc8 {[%emt 0:01:30]} 23. Qd2 {[%emt 0:01:30]} Bc4 {[%emt 0:03:30]} 24. Rc1 {[%emt 0:10:17]} Bxb3 {[%emt 0:01:30]} 25. axb3 {[%emt 0:00:19]} Rc3 {[%emt 0:02:36]} 26. Rb1 {[%emt 0:01:56]} Rc7 {[%emt 0:02:35]} 27. g3 {[%emt 0:01:17]} Bc5 {[%emt 0:03:29]} 28. Bxc5 {[%emt 0:01:14]} Rxc5 {[%emt 0:00:05]} 29. Bc4 {[%emt 0:00:00]} Rc8 {[%emt 0:01:05]} 30. Rd1 {[%emt 0:00:25]} Rd8 {[%emt 0:00:04]} 31. Qg5 {[%emt 0:02:20]} Qc7 {[%emt 0:03:08]} 32. e5 {[%emt 0:01:34]} Nh7 {[%emt 0:05:12]} 33. Qxg6 {[%emt 0:00:44]} Qxe5 {[%emt 0:01:16]} 34. Qxf7+ {[%emt 0:01:23]} Kh8 {[%emt 0:00:04]} 35. Qe6 {[%emt 0:00:28]} Qh5 {[%emt 0:03:36]} 36. Kg2 {[%emt 0:01:44]} Ng5 {[%emt 0:01:09]} 37. Qg4 {[%emt 0:00:18]} Qxg4 {[%emt 0:01:10]} 38. fxg4 {[%emt 0:00:04]} Ne4 {[%emt 0:00:15]} 39. Kf3 {[%emt 0:01:36]} Nc3 {[%emt 0:00:06]} 40. Rd3 {[%emt 0:00:00]} Rf8+ {[%emt 0:01:02]} 41. Kg2 {[%emt 0:01:21]} Rd8 {[%emt 0:02:38]} 42. g5 {[%emt 0:00:30]} g6 {[%emt 0:04:30]} 43. Kf3 {[%emt 0:00:30]} Kg7 {[%emt 0:04:30]} 44. Kf4 {[%emt 0:01:30]} Rf8+ {[%emt 0:02:46]} 45. Ke5 {[%emt 0:03:30]} Nxb5 {[%emt 0:01:16]} 46. Bxb5 {[%emt 0:00:30]} Rf5+ {[%emt 0:00:04]} 47. Kxd4 {[%emt 0:00:30]} Rxb5 {[%emt 0:00:04]} 48. Kc4 {[%emt 0:00:30]} Rxg5 {[%emt 0:02:05]} 49. Rd7+ {[%emt 0:00:30]} Kf6 {[%emt 0:01:19]} 50. Rxb7 {[%emt 0:00:00]} Ra5 {[%emt 0:00:08]} 51. b4 {[%emt 0:03:00]} Ra1 {[%emt 0:00:39]} 52. Rd7 {[%emt 0:14:51]} Kf5 {[%emt 0:01:59]} 53. Rd5+ {[%emt 0:02:21]} Kg4 {[%emt 0:01:59]} 54. Ra5 {[%emt 0:00:03]} Rc1+ {[%emt 0:00:14]} 55. Kb3 {[%emt 0:02:10]} Rc7 {[%emt 0:00:15]} 56. Rc5 {[%emt 0:02:10]} Rh7 {[%emt 0:02:55]} 57. Rc4+ {[%emt 0:01:28]} Kh3 {[%emt 0:00:50]} 58. Rc2 {[%emt 0:00:27]} g5 {[%emt 0:00:22]} 59. b5 {[%emt 0:01:21]} g4 {[%emt 0:01:31]} 60. Kb4 {[%emt 0:00:48]} Rb7 {[%emt 0:00:46]} 61. Ka5 {[%emt 0:00:41]} Rh7 {[%emt 0:00:24]} 62. Rd2 {[%emt 0:01:28]} Rb7 {[%emt 0:00:18]} 63. Re2 {[%emt 0:01:17]} Rc7 {[%emt 0:01:05]} 64. Ra2 {[%emt 0:01:02]} Rc4 {[%emt 0:00:46]} 65. Ka6 {[%emt 0:01:16]} Rc7 {[%emt 0:00:05]} 66. Rd2 {[%emt 0:00:36]} Rh7 {[%emt 0:00:20]} 67. Re2 {[%emt 0:00:39]} Rf7 {[%emt 0:00:23]} 68. Rd2 {[%emt 0:00:46]} Rh7 {[%emt 0:00:06]} 69. Re2 {[%emt 0:00:52]} 1/2-1/2

[Event "World Junior U20 Open 2018"]
[Site "Gebze"]
[Date "2018.09.14"]
[Round "10.68"]
[White "Aydincelebi, Kagan"]
[Black "Thilakarathne, G M H"]
[Result "1-0"]
[ECO "B51"]
[WhiteElo "2060"]
[BlackElo "2238"]
[Annotator "NA"]
[PlyCount "93"]
[EventDate "2018.09.05"]
[EventType "swiss"]
[EventCountry "TUR"]
[SourceTitle "playchess.com"]
[Source "ChessBase"]
[SourceQuality "1"]
[TimeControl "40/5400+30:1800+30"]

1. e4 {[%emt 0:00:30]} c5 {[%emt 0:00:30]} 2. Nf3 {[%emt 0:00:30]} d6 {[%emt 0:00:30]} 3. Bb5+ {[%emt 0:00:30]} Nd7 {[%emt 0:00:00]} 4. a4 {[%emt 0:00:00]} Ngf6 {[%emt 0:00:00]} 5. Nc3 {[%emt 0:00:00]} g6 {[%emt 0:00:30]} 6. a5 {[%emt 0:00:30]} Bg7 {[%emt 0:01:30]} 7. a6 {[%emt 0:00:30]} O-O {[%emt 0:00:30]} 8. O-O {[%emt 0:00:00]} Ne8 {[%emt 0:08:00]} 9. d4 {[%emt 0:06:30]} bxa6 {[%emt 0:03:30]} 10. Bxa6 {[%emt 0:01:30]} Bxa6 {[%emt 0:03:30]} 11. Rxa6 {[%emt 0:00:30]} Nc7 {[%emt 0:26:30]} 12. Ra2 {[%emt 0:16:00]} a6 {[%emt 0:05:30]} 13. Be3 $11 {[%emt 0:09:30]} Nb5 {[%emt 0:08:30]} 14. Qd2 {[%emt 0:05:30]} Nxc3 {[%emt 0:09:30]} 15. Qxc3 {[%emt 0:00:30]} Qc8 {[%emt 0:11:30]} 16. Qd3 {[%emt 0:15:30]} Qb7 {[%emt 0:12:30]} 17. d5 {[%emt 0:05:30]} Qb5 {[%emt 0:07:32]} 18. Qd2 {[%emt 0:07:30]} Rfb8 {[%emt 0:05:17]} 19. Bg5 {[%emt 0:03:30]} Nf6 {[%emt 0:07:46]} 20. Re1 {[%emt 0:01:30]} Qb4 {[%emt 0:01:03]} 21. Qd3 {[%emt 0:02:30]} h6 {[%emt 0:01:15]} 22. Bd2 {[%emt 0:02:30]} Qb5 {[%emt 0:00:08]} 23. Qe3 {[%emt 0:00:30]} Qd7 {[%emt 0:01:26]} 24. Bc3 {[%emt 0:01:30]} Re8 {[%emt 0:01:41]} 25. Nd2 {[%emt 0:08:30]} e6 {[%emt 0:01:00]} 26. Bxf6 {[%emt 0:01:30]} Bxf6 {[%emt 0:00:04]} 27. Nc4 {[%emt 0:01:30]} Qd8 {[%emt 0:00:42]} 28. Qd2 {[%emt 0:02:02]} Bg7 {[%emt 0:01:05]} 29. c3 {[%emt 0:00:39]} a5 {[%emt 0:00:12]} 30. Rea1 {[%emt 0:01:39]} a4 {[%emt 0:00:54]} 31. Rxa4 {[%emt 0:00:35]} Rxa4 {[%emt 0:00:25]} 32. Rxa4 {[%emt 0:00:30]} exd5 {[%emt 0:00:30]} 33. Qxd5 {[%emt 0:01:07]} Qe7 {[%emt 0:00:29]} 34. Nxd6 {[%emt 0:03:04]} Rd8 {[%emt 0:00:06]} 35. Ra8 {[%emt 0:00:04]} Rxa8 {[%emt 0:00:07]} 36. Qxa8+ {[%emt 0:00:03]} Kh7 {[%emt 0:00:03]} 37. Qd5 {[%emt 0:00:18]} Qa7 {[%emt 0:00:12]} 38. g3 {[%emt 0:01:13]} Qa1+ {[%emt 0:00:30]} 39. Kg2 {[%emt 0:00:00]} Qxb2 {[%emt 0:00:00]} 40. c4 {[%emt 0:00:00]} Qe2 {[%emt 0:00:00]} 41. Qxf7 {[%emt 0:04:46]} h5 {[%emt 0:02:03]} 42. h4 {[%emt 0:00:30]} Qd3 {[%emt 0:00:30]} 43. Qe7 {[%emt 0:00:30]} Kh6 {[%emt 0:00:30]} 44. Nf7+ {[%emt 0:00:30]} Kh7 {[%emt 0:00:30]} 45. Ng5+ {[%emt 0:00:00]} Kh6 {[%emt 0:00:30]} 46. Qe6 {[%emt 0:01:00]} Bf6 {[%emt 0:00:00]} 47. Qg8 {[%emt 0:00:30]} 1-0

[Event "World Junior U20 Open 2018"]
[Site "Gebze"]
[Date "2018.09.14"]
[Round "10.69"]
[White "Yilmaz, Goktan"]
[Black "Akin, Kadir"]
[Result "1-0"]
[ECO "B01"]
[WhiteElo "2237"]
[BlackElo "1974"]
[Annotator "NA"]
[PlyCount "77"]
[EventDate "2018.09.05"]
[EventType "swiss"]
[EventCountry "TUR"]
[SourceTitle "playchess.com"]
[Source "ChessBase"]
[SourceQuality "1"]
[TimeControl "40/5400+30:1800+30"]

1. e4 {[%emt 0:00:30]} d5 {[%emt 0:00:30]} 2. exd5 {[%emt 0:00:30]} Qxd5 {[%emt 0:00:30]} 3. Nc3 {[%emt 0:00:30]} Qd6 {[%emt 0:00:30]} 4. d4 {[%emt 0:00:30]} Nf6 {[%emt 0:00:30]} 5. Nf3 {[%emt 0:00:00]} Bg4 {[%emt 0:00:00] LiveBook: 164 Games} 6. h3 Bh5 {B01: Scandinavian Defence} 7. g4 Bg6 8. Ne5 {[%emt 0:02:00]} c6 {[%emt 0:13:00]} 9. Be3 {[%emt 0:01:30]} Nbd7 {[%emt 0:05:30]} 10. Nxg6 {[%emt 0:00:30]} (10. Qe2 Nd5 11. f4 Nxc3 12. bxc3 Be4 13. Rg1 Nxe5 14. dxe5 {0-1 (56) Grischuk,A (2750)-Rapport,R (2698) chess.com INT 2017}) 10... hxg6 {[%emt 0:00:30]} 11. Qf3 {[%emt 0:00:30]} e6 {[%emt 0:01:30]} 12. O-O-O {[%emt 0:01:30]} Qc7 {[%emt 0:00:30]} 13. Kb1 {[%emt 0:00:30]} Nb6 {[%emt 0:25:30]} 14. g5 $146 {[%emt 0:17:00]} Nfd5 {[%emt 0:00:30]} 15. Ne4 {[%emt 0:00:30]} Nc8 {[%emt 0:12:30]} 16. c4 {[%emt 0:03:30]} Nxe3 {[%emt 0:00:30]} 17. fxe3 {[%emt 0:00:30]} Nd6 {[%emt 0:00:30]} 18. d5 {[%emt 0:10:30]} Rh4 {[%emt 0:09:30]} 19. Nxd6+ {[%emt 0:06:30]} Bxd6 {[%emt 0:02:30]} 20. Bd3 {[%emt 0:12:30]} O-O-O {[%emt 0:03:30]} 21. dxc6 {[%emt 0:00:30]} bxc6 {[%emt 0:00:00]} 22. c5 {[%emt 0:00:30]} Be7 {[%emt 0:12:00]} 23. Qxf7 {[%emt 0:01:30]} Bxg5 {[%emt 0:00:30]} 24. Ba6+ {[%emt 0:01:30]} Kb8 {[%emt 0:00:00]} 25. Rxd8+ {[%emt 0:00:00]} Bxd8 {[%emt 0:00:00]} 26. Qe8 {[%emt 0:00:00]} Rh5 {[%emt 0:01:30]} 27. e4 {[%emt 0:03:30]} Qe7 {[%emt 0:01:30]} 28. Qxc6 {[%emt 0:00:30]} Rxc5 {[%emt 0:00:00]} 29. Qa4 {[%emt 0:00:30]} Bb6 {[%emt 0:05:00]} 30. b4 {[%emt 0:08:30]} Rc7 {[%emt 0:09:30]} 31. Rd1 {[%emt 0:00:30]} Qf8 $18 {[%emt 0:03:35]} (31... Bf2 32. Qb5+ Bb6) 32. a3 {[%emt 0:03:30]} Qe7 {[%emt 0:04:39]} 33. Qb5 {[%emt 0:01:30]} Ka8 {[%emt 0:02:53]} 34. e5 {[%emt 0:11:30]} Qf8 {[%emt 0:04:04]} 35. Qd3 {[%emt 0:01:30]} Re7 {[%emt 0:01:16]} 36. Rc1 {[%emt 0:01:30]} Kb8 {[%emt 0:04:06]} 37. Qd6+ {[%emt 0:00:00]} Bc7 {[%emt 0:00:13]} 38. Rxc7 {[%emt 0:00:00]} Qf5+ {[%emt 0:00:44]} 39. Rc2+ {[%emt 0:00:30]} 1-0

[Event "World Junior U20 Open 2018"]
[Site "Gebze"]
[Date "2018.09.14"]
[Round "10.70"]
[White "Sevgi, Volkan"]
[Black "Gulden, Egemen"]
[Result "1-0"]
[ECO "B43"]
[WhiteElo "2323"]
[BlackElo "2068"]
[Annotator "ChessBase"]
[PlyCount "83"]
[EventDate "2018.09.05"]
[EventType "swiss"]
[EventCountry "TUR"]
[SourceTitle "playchess.com"]
[Source "ChessBase"]
[SourceQuality "1"]
[TimeControl "40/5400+30:1800+30"]

1. e4 c5 2. Nc3 e6 3. Nf3 a6 4. g3 b5 5. d4 cxd4 6. Nxd4 Qb6 7. Nb3 Bb7 {[%emt 0:15:30]} 8. Be3 {[%emt 0:26:00]} Qc7 {[%emt 0:00:30]} 9. Bg2 {[%emt 0:00:30]} Nf6 {[%emt 0:00:30]} 10. O-O {[%emt 0:05:30]} d6 {[%emt 0:03:30]} 11. a3 {[%emt 0:04:30]} Nbd7 {[%emt 0:01:30]} 12. f4 {[%emt 0:01:30]} Be7 {[%emt 0:02:30]} 13. Qe2 {[%emt 0:06:30]} Rc8 {[%emt 0:03:30]} 14. Rad1 {[%emt 0:04:30]} Ba8 {[%emt 0:11:30]} 15. h3 {[%emt 0:06:30]} h5 {[%emt 0:00:30]} 16. Qf2 {[%emt 0:01:30]} Rb8 {[%emt 0:10:30]} 17. Rfe1 {[%emt 0:02:30]} Nb6 {[%emt 0:02:30]} 18. Bxb6 {[%emt 0:00:30]} Rxb6 {[%emt 0:08:30]} 19. e5 {[%emt 0:00:30]} Nd5 {[%emt 0:00:30]} 20. Bxd5 {[%emt 0:01:30]} Bxd5 {[%emt 0:02:30]} 21. Rxd5 {[%emt 0:00:30]} h4 {[%emt 0:07:30]} 22. g4 {[%emt 0:02:30]} O-O {[%emt 0:01:30]} 23. Rd3 {[%emt 0:01:30]} dxe5 {[%emt 0:01:30]} 24. fxe5 {[%emt 0:00:30]} a5 {[%emt 0:01:30]} 25. Red1 {[%emt 0:05:30]} Rb7 {[%emt 0:03:30]} 26. Rd7 {[%emt 0:02:30]} Qxd7 {[%emt 0:11:54]} 27. Rxd7 {[%emt 0:00:30]} Rxd7 {[%emt 0:00:30]} 28. Nxb5 {[%emt 0:00:30]} Rd5 {[%emt 0:00:30]} 29. Qe2 {[%emt 0:00:30]} Rfd8 {[%emt 0:00:30]} 30. Nc3 {[%emt 0:00:00]} R5d7 {[%emt 0:01:00]} 31. Qa6 {[%emt 0:00:00]} a4 {[%emt 0:01:36]} 32. Qxa4 {[%emt 0:00:30]} f6 {[%emt 0:00:38]} 33. Qc4 {[%emt 0:01:30]} fxe5 {[%emt 0:02:05]} 34. Qxe6+ {[%emt 0:00:30]} Kh8 {[%emt 0:00:10]} 35. Qxe5 {[%emt 0:00:30]} Bf6 {[%emt 0:00:13]} 36. Qh5+ {[%emt 0:00:30]} Kg8 {[%emt 0:00:05]} 37. g5 {[%emt 0:00:30]} Bxc3 {[%emt 0:03:04]} 38. bxc3 {[%emt 0:00:30]} Rd1+ {[%emt 0:00:00]} 39. Kg2 {[%emt 0:00:00]} Re1 {[%emt 0:00:14]} 40. Nd4 {[%emt 0:00:00]} Rf8 {[%emt 0:02:25]} 41. g6 {[%emt 0:00:30]} Rf4 {[%emt 0:01:06]} 42. Qd5+ {[%emt 0:00:30]} 1-0

[Event "World Junior U20 Open 2018"]
[Site "Gebze"]
[Date "2018.09.14"]
[Round "10.71"]
[White "Nalbant, Tuna Onat"]
[Black "Tifferet, Shaked"]
[Result "0-1"]
[ECO "C54"]
[WhiteElo "2241"]
[BlackElo "2299"]
[Annotator "NA"]
[PlyCount "112"]
[EventDate "2018.09.05"]
[EventType "swiss"]
[EventCountry "TUR"]
[SourceTitle "playchess.com"]
[Source "ChessBase"]
[SourceQuality "1"]
[TimeControl "40/5400+30:1800+30"]

1. e4 e5 2. Nf3 Nc6 3. Bc4 Bc5 4. d3 Nf6 5. O-O d6 6. c3 a5 {C54: Italienische Partie (Hauptvariante)} 7. h3 h6 8. Re1 O-O 9. Nbd2 a4 10. Bb5 Bd7 {[%emt 0:07:00]} 11. Nf1 {[%emt 0:35:30]} Ne7 {[%emt 0:00:30]} 12. Bxd7 {[%emt 0:00:30]} Nxd7 {[%emt 0:00:30]} 13. Ng3 $146 {[%emt 0:06:30]} ({Vorgänger:} 13. d4 Bb6 14. Ng3 {0-1 (29) Anand,V (2760)-Caruana,F (2822) Stavanger 2018}) 13... f5 {[%emt 0:01:30]} 14. d4 {[%emt 0:10:30]} Bb6 {[%emt 0:01:30]} 15. exf5 {[%emt 0:04:30]} Nxf5 {[%emt 0:03:30]} 16. Nxf5 {[%emt 0:01:30]} Rxf5 {[%emt 0:00:30]} 17. Qd3 {[%emt 0:05:30]} Qf8 {[%emt 0:04:30]} 18. Be3 {[%emt 0:00:30]} Rxf3 {[%emt 0:16:30]} 19. gxf3 {[%emt 0:01:30]} Qxf3 {[%emt 0:01:30]} 20. Qf1 {[%emt 0:02:30]} exd4 {[%emt 0:08:30]} 21. cxd4 {[%emt 0:01:30]} Rf8 {[%emt 0:12:30]} 22. Qg2 {[%emt 0:01:30]} Qh5 {[%emt 0:00:30]} 23. Kh2 {[%emt 0:02:30]} Nf6 {[%emt 0:10:30]} 24. Rg1 {[%emt 0:01:30]} Rf7 {[%emt 0:00:30]} 25. Qg6 {[%emt 0:06:30]} Qxg6 {[%emt 0:00:30]} 26. Rxg6 {[%emt 0:00:00]} Kh7 {[%emt 0:00:30]} 27. Rgg1 {[%emt 0:04:12]} Ne4 {[%emt 0:03:30]} 28. Rac1 {[%emt 0:04:06]} d5 $14 {[%emt 0:03:30]} 29. Kg2 {[%emt 0:00:27]} c6 {[%emt 0:00:30]} 30. Rgd1 {[%emt 0:05:10]} Nd6 {[%emt 0:01:30]} 31. Rd3 {[%emt 0:02:25]} Nb5 {[%emt 0:01:30]} 32. f3 {[%emt 0:02:00]} Rf8 {[%emt 0:01:30]} 33. Re1 {[%emt 0:01:40]} Re8 {[%emt 0:01:30]} 34. Kf2 {[%emt 0:01:12]} Kg6 {[%emt 0:00:30]} 35. Rg1+ {[%emt 0:00:29]} Kf7 {[%emt 0:00:30]} 36. Rg4 {[%emt 0:00:40]} Nd6 {[%emt 0:01:30]} 37. Rf4+ {[%emt 0:02:31]} Kg8 {[%emt 0:00:30]} 38. Bd2 {[%emt 0:00:52]} h5 {[%emt 0:01:51]} 39. Bb4 {[%emt 0:00:37]} Nf7 {[%emt 0:08:16]} 40. Re3 {[%emt 0:00:00]} Rxe3 {[%emt 0:01:33]} 41. Kxe3 {[%emt 0:01:39]} Bd8 {[%emt 0:05:20]} 42. h4 {[%emt 0:07:30]} g6 {[%emt 0:04:30]} 43. Be1 {[%emt 0:13:54]} Kg7 {[%emt 0:01:30]} 44. Bg3 {[%emt 0:02:28]} Nh6 {[%emt 0:01:30]} 45. Bf2 {[%emt 0:03:19]} g5 {[%emt 0:01:30]} 46. hxg5 {[%emt 0:01:07]} Bxg5 {[%emt 0:00:30]} 47. Bg3 {[%emt 0:01:34]} Nf5+ {[%emt 0:00:30]} 48. Kf2 {[%emt 0:00:47]} Nxg3 {[%emt 0:00:30]} 49. Kxg3 {[%emt 0:00:43]} Bxf4+ {[%emt 0:00:30]} 50. Kxf4 {[%emt 0:00:01]} Kf6 {[%emt 0:00:00]} 51. b3 {[%emt 0:01:38]} axb3 {[%emt 0:00:00]} 52. axb3 {[%emt 0:00:30]} b6 {[%emt 0:00:30]} 53. b4 {[%emt 0:00:30]} b5 {[%emt 0:00:30]} 54. Kg3 {[%emt 0:00:30]} Kg5 {[%emt 0:00:30]} 55. Kh3 {[%emt 0:00:30]} Kf4 {[%emt 0:00:30]} 56. Kg2 {[%emt 0:00:30]} h4 {[%emt 0:00:30]} 0-1

[Event "World Junior U20 Open 2018"]
[Site "Gebze"]
[Date "2018.09.14"]
[Round "10.72"]
[White "Cansun, Can Alp"]
[Black "Akdogan, Alperen"]
[Result "1-0"]
[ECO "C41"]
[WhiteElo "2110"]
[BlackElo "2278"]
[Annotator "NA"]
[PlyCount "51"]
[EventDate "2018.09.05"]
[EventType "swiss"]
[EventCountry "TUR"]
[SourceTitle "playchess.com"]
[Source "ChessBase"]
[SourceQuality "1"]
[TimeControl "40/5400+30:1800+30"]

1. e4 {[%emt 0:00:30]} e5 {[%emt 0:00:30]} 2. Nf3 {[%emt 0:00:30]} d6 {[%emt 0:00:30]} 3. d4 {[%emt 0:00:30]} exd4 {[%emt 0:00:30]} 4. Nxd4 {[%emt 0:00:30]} Nf6 {[%emt 0:00:00]} 5. Nc3 {[%emt 0:00:00]} Be7 {[%emt 0:00:00]} 6. Be2 {[%emt 0:00:30]} O-O {[%emt 0:00:00]} 7. O-O {[%emt 0:00:30]} Re8 {[%emt 0:00:00]} 8. f4 {[%emt 0:09:00] LiveBook: 272 Games} Bf8 {[%emt 0:00:30]} 9. Bf3 {[%emt 0:00:30]} c5 {[%emt 0:00:30]} 10. Nde2 {[%emt 0:02:30] C41: Philidor Defence} Nc6 {[%emt 0:00:30]} 11. h3 {[%emt 0:02:30]} (11. Kh1 Bd7 12. Qd3 b5 13. a3 b4 14. Nd5 Rb8 15. b3 a5 16. Nxf6+ Qxf6 17. Rb1 Rbd8 {0-1 (26) Steingrimsson,H (2576)-Mamedyarov,S (2791) Antalya 2017}) 11... a6 {[%emt 0:06:30]} 12. Be3 {[%emt 0:19:00]} Rb8 $146 {[%emt 0:23:00]} ({Predecessor:} 12... d5 13. exd5 Rxe3 14. dxc6 Qxd1 15. Raxd1 bxc6 16. Bxc6 Ra7 17. Kf2 Rae7 {1-0 (33) Maurer,H (2004)-Frankenberger,R (1860) Bayern 2010}) 13. Qd2 {[%emt 0:01:30]} Qc7 {[%emt 0:16:30]} 14. g4 {[%emt 0:10:30]} b5 {[%emt 0:02:30]} 15. Rae1 {[%emt 0:10:30]} b4 {[%emt 0:14:30]} 16. Nd5 {[%emt 0:04:30]} Nxd5 $18 {[%emt 0:07:30]} (16... Na7 $2 {[%emt 0:07:30][%mdl 8192]}) (16... Qd8 $14) 17. exd5 {[%emt 0:00:30]} Na7 {[%emt 0:00:30]} 18. f5 {[%emt 0:00:30]} Be7 {[%emt 0:00:30]} 19. Ng3 {[%emt 0:09:30]} Bh4 {[%emt 0:08:30]} 20. Bg5 {[%emt 0:00:00]} Bxf5 {[%emt 0:01:30]} 21. Bxh4 {[%emt 0:01:00]} Bg6 {[%emt 0:00:30]} 22. Nf5 {[%emt 0:00:30]} Nb5 {[%emt 0:00:30]} 23. Rxe8+ {[%emt 0:00:30]} Rxe8 {[%emt 0:00:30]} 24. Re1 {[%emt 0:00:30]} Rf8 {[%emt 0:00:30]} 25. Qf4 {[%emt 0:02:30]} c4 {[%emt 0:04:30]} 26. Nxg7 {[%emt 0:02:30]} 1-0

[Event "World Junior U20 Open 2018"]
[Site "Gebze"]
[Date "2018.09.14"]
[Round "10.73"]
[White "Vanczak, Tamas"]
[Black "Ozturk, Efe Hakan"]
[Result "1-0"]
[ECO "C00"]
[WhiteElo "2276"]
[BlackElo "2065"]
[Annotator "NA"]
[PlyCount "133"]
[EventDate "2018.09.05"]
[EventType "swiss"]
[EventCountry "TUR"]
[SourceTitle "playchess.com"]
[Source "ChessBase"]
[SourceQuality "1"]
[TimeControl "40/5400+30:1800+30"]

1. e4 e6 2. b3 {[%emt 0:01:00]} d5 {[%emt 0:09:00]} 3. Bb2 {[%emt 0:00:30]} dxe4 {[%emt 0:00:30]} 4. Nc3 {[%emt 0:01:30]} Nf6 {[%emt 0:05:30]} 5. Qe2 {[%emt 0:00:30]} Be7 {[%emt 0:07:30]} 6. O-O-O {[%emt 0:00:30]} O-O {[%emt 0:00:30]} 7. g4 {[%emt 0:00:30]} a5 {[%emt 0:31:30]} 8. a4 {[%emt 0:27:00]} c6 {[%emt 0:10:30]} 9. g5 {[%emt 0:03:30]} Nd5 {[%emt 0:00:30]} 10. Nxe4 {[%emt 0:00:30]} b5 {[%emt 0:04:30]} 11. Qh5 {[%emt 0:10:30]} bxa4 {[%emt 0:08:30]} 12. Bd3 {[%emt 0:07:30]} Ba6 {[%emt 0:01:30]} 13. c4 {[%emt 0:12:30]} Nd7 {[%emt 0:06:30]} 14. Nh3 {[%emt 0:08:30]} Nb4 {[%emt 0:13:30]} (14... e5 $142 15. Rhg1 a3) 15. Bb1 {[%emt 0:02:30]} a3 {[%emt 0:00:36]} 16. Bxg7 {[%emt 0:06:56]} a2 {[%emt 0:03:50]} 17. Qh6 {[%emt 0:02:44]} axb1=Q+ $19 {[%emt 0:10:00]} ({Not} 17... axb1=N $2 18. Bf6 $18) 18. Kxb1 {[%emt 0:01:06]} Bxc4 {[%emt 0:02:48]} 19. bxc4 $17 {[%emt 0:01:53]} Nf6 {[%emt 0:02:15]} 20. d3 {[%emt 0:05:33]} Ng4 {[%emt 0:00:59]} 21. Qh4 {[%emt 0:02:59]} Kxg7 {[%emt 0:00:13]} 22. Nf4 {[%emt 0:00:50]} Qb8 {[%emt 0:01:35]} 23. Nh5+ {[%emt 0:02:01]} Kh8 {[%emt 0:00:15]} 24. Qxg4 {[%emt 0:00:12]} Nxd3+ {[%emt 0:00:46]} 25. Kc2 {[%emt 0:00:07]} Nb4+ {[%emt 0:01:14]} 26. Kd2 {[%emt 0:00:35]} Rd8+ {[%emt 0:00:30]} 27. Ke2 {[%emt 0:00:24]} Qe5 {[%emt 0:00:33]} 28. Nhg3 {[%emt 0:00:53]} Qb2+ {[%emt 0:00:48]} 29. Kf3 {[%emt 0:00:05]} Rd3+ {[%emt 0:00:34]} 30. Kg2 {[%emt 0:00:33]} a4 {[%emt 0:00:31]} 31. Rb1 {[%emt 0:00:46]} Qd4 {[%emt 0:00:28]} 32. Qh5 {[%emt 0:00:32]} Rf8 {[%emt 0:00:33]} 33. Rxb4 {[%emt 0:00:25]} Rxg3+ {[%emt 0:00:25]} 34. Nxg3 {[%emt 0:02:57]} Bxb4 {[%emt 0:00:03]} 35. Rd1 {[%emt 0:00:00]} Qg7 {[%emt 0:00:59]} 36. Rd7 {[%emt 0:00:10]} a3 {[%emt 0:00:25]} 37. Ra7 {[%emt 0:00:22]} Bc5 {[%emt 0:00:37]} 38. Ra5 {[%emt 0:00:20]} Qd4 {[%emt 0:00:30]} 39. g6 {[%emt 0:00:24]} Qxf2+ {[%emt 0:00:30]} 40. Kh3 {[%emt 0:00:00]} fxg6 {[%emt 0:00:58]} 41. Qe5+ {[%emt 0:01:13]} Kg8 {[%emt 0:06:35]} 42. Rxc5 {[%emt 0:00:30]} Rf3 {[%emt 0:02:30]} 43. Ra5 {[%emt 0:06:30]} Qf1+ {[%emt 0:18:16]} 44. Kg4 {[%emt 0:01:30]} Qd1 {[%emt 0:00:54]} 45. Qxe6+ {[%emt 0:00:30]} Rf7+ {[%emt 0:01:51]} 46. Kh3 {[%emt 0:00:30]} Qd2 {[%emt 0:01:43]} 47. Ra8+ {[%emt 0:01:30]} Kg7 {[%emt 0:00:03]} 48. Qe5+ {[%emt 0:00:30]} Kh6 {[%emt 0:00:30]} 49. Rxa3 {[%emt 0:00:30]} Rf2 {[%emt 0:01:23]} 50. Qe3+ {[%emt 0:00:30]} Qxe3 {[%emt 0:00:30]} 51. Rxe3 {[%emt 0:00:30]} Rc2 {[%emt 0:00:30]} 52. Re4 {[%emt 0:00:00]} Rc3 {[%emt 0:00:49]} 53. Kg4 {[%emt 0:00:00]} Rc2 {[%emt 0:00:29]} 54. h4 {[%emt 0:00:30]} Kg7 {[%emt 0:00:03]} 55. Rf4 {[%emt 0:03:30]} h5+ {[%emt 0:00:53]} 56. Kf3 {[%emt 0:00:30]} Rc3+ {[%emt 0:00:13]} 57. Kf2 {[%emt 0:00:30]} c5 {[%emt 0:00:52]} 58. Ne2 {[%emt 0:01:30]} Ra3 {[%emt 0:00:27]} 59. Ng1 {[%emt 0:01:30]} Rc3 {[%emt 0:00:35]} 60. Nf3 {[%emt 0:00:00]} Ra3 {[%emt 0:00:28]} 61. Ng5 {[%emt 0:00:00]} Ra6 {[%emt 0:00:30]} 62. Ke3 {[%emt 0:00:30]} Rd6 {[%emt 0:00:29]} 63. Ke4 {[%emt 0:00:30]} Rd4+ {[%emt 0:00:18]} 64. Ke5 {[%emt 0:00:00]} Rd1 {[%emt 0:00:08]} 65. Ne6+ {[%emt 0:01:00]} Kg8 {[%emt 0:00:43]} 66. Nxc5 {[%emt 0:00:30]} Rg1 {[%emt 0:00:03]} 67. Ne4 {[%emt 0:00:30]} 1-0